bitfinex/quotes_BTCUSD_20251027
["timestamp","ask_amount","ask_price","bid_price","bid_amount"]
[1761528029497,0.00981881,115000.0,114990.0,1.82395473]
[1761528030250,0.00981881,115000.0,114990.0,1.73800573]
[1761528030452,0.00481881,115000.0,114990.0,1.73900573]
[1761528030596,0.00481881,115000.0,114990.0,1.57984773]
[1761528031773,0.00481881,115000.0,114990.0,1.57654373]
[1761528031957,0.00481881,115000.0,114990.0,1.46780573]
[1761528034217,0.00481881,115000.0,114990.0,1.40556767]
[1761528035180,0.00481881,115000.0,114990.0,1.24129231]
[1761528035554,0.00481881,115000.0,114990.0,1.22505634]
[1761528035759,0.00481881,115000.0,114990.0,1.42505634]
[1761528035969,0.00481881,115000.0,114990.0,1.64298698]
[1761528036884,0.00481881,115000.0,114990.0,1.65298697]
[1761528038024,0.00481881,115000.0,114990.0,1.62059997]
[1761528038210,0.00481881,115000.0,114990.0,1.58924598]
[1761528038414,0.00481881,115000.0,114990.0,0.89712243]
[1761528038554,0.00481881,115000.0,114990.0,1.42510755]
[1761528040389,0.00481881,115000.0,114990.0,1.62510755]
[1761528041187,0.00481881,115000.0,114990.0,2.34669467]
[1761528041413,0.00481881,115000.0,114990.0,2.3001411]
[1761528041628,0.00481881,115000.0,114990.0,1.98079598]
[1761528041948,0.00481881,115000.0,114990.0,1.99079597]
[1761528042546,0.00481881,115000.0,114990.0,1.67145085]
[1761528042786,0.00481881,115000.0,114990.0,1.99079597]
[1761528044214,0.00481881,115000.0,114990.0,2.05303403]
[1761528044592,0.00481881,115000.0,114990.0,2.37237915]
[1761528045419,0.00527912,115010.0,115000.0,2.56009531]
[1761528045621,0.00527912,115010.0,115000.0,3.33518448]
[1761528045833,0.00527912,115010.0,115000.0,3.354174]
[1761528046070,0.00527912,115010.0,115000.0,3.343915]
[1761528046250,0.00527912,115010.0,115000.0,2.12422041]
[1761528046482,0.00527912,115010.0,115000.0,1.80487529]
[1761528046679,0.00527912,115010.0,115000.0,2.12522041]
[1761528047122,0.00527912,115010.0,115000.0,1.16889886]
[1761528047334,0.00527912,115010.0,115000.0,1.42423022]
[1761528048042,0.00827912,115010.0,115000.0,1.42423022]
[1761528051070,0.00848614,115010.0,115000.0,1.42423022]
[1761528051375,0.00848614,115010.0,115000.0,1.37761886]
[1761528052467,0.00848614,115010.0,115000.0,1.43985692]
[1761528053781,0.00848614,115010.0,115000.0,1.23985692]
[1761528054353,0.00848614,115010.0,115000.0,1.17761886]
[1761528055523,0.00863941,115030.0,115020.0,0.5138828]
[1761528055723,0.00878553,115030.0,115020.0,0.80364274]
[1761528056290,0.00878553,115030.0,115020.0,0.75682181]
[1761528057298,0.01678553,115030.0,115020.0,0.75682181]
[1761528058098,0.01678553,115030.0,115020.0,0.81924972]
[1761528059215,0.01678553,115030.0,115020.0,1.13859484]
[1761528060043,0.01678553,115030.0,115020.0,0.81924972]
[1761528061222,0.0171995,115030.0,115020.0,1.13859484]
[1761528061697,0.0171995,115030.0,115020.0,0.81924972]
[1761528061906,0.0171995,115030.0,115020.0,1.13859484]
[1761528063609,0.0171995,115030.0,115020.0,1.19419484]
[1761528064433,0.0091995,115030.0,115020.0,1.19419484]
[1761528064833,0.0121995,115030.0,115020.0,1.19419484]
[1761528065485,0.0121995,115030.0,115020.0,0.81916972]
[1761528065683,0.0121995,115030.0,115020.0,0.87476972]
[1761528066321,0.0121995,115030.0,115020.0,1.23384217]
[1761528069885,0.0121995,115030.0,115020.0,0.87476972]
[1761528070039,0.0121995,115030.0,115020.0,1.23384217]
[1761528071569,0.0121995,115030.0,115020.0,0.87476972]
[1761528071788,0.0121995,115030.0,115020.0,1.23384217]
[1761528074455,0.0121995,115030.0,115020.0,0.87476972]
[1761528075476,0.54513963,115030.0,115020.0,0.47908972]
[1761528076621,0.37127195,115030.0,115020.0,0.47908972]
[1761528077020,0.54513963,115030.0,115020.0,0.47908972]
[1761528077218,0.54513963,115030.0,115020.0,0.30520692]
[1761528077948,0.54513963,115030.0,115020.0,0.47908972]
[1761528078175,0.54513963,115030.0,115020.0,0.21538791]
[1761528078386,0.1738828,115020.0,115010.0,0.06242791]
[1761528078559,0.8920277,115020.0,115010.0,0.30524692]
[1761528078717,0.8922347,115020.0,115010.0,0.30524692]
[1761528079143,0.8922347,115020.0,115010.0,0.06242791]
[1761528079489,0.8922347,115020.0,115000.0,0.21542791]
[1761528079490,0.17389792,115010.0,115000.0,0.21542791]
[1761528079697,0.53297037,115010.0,115000.0,0.15224692]
[1761528080019,0.53197037,115010.0,115000.0,0.06242791]
[1761528081081,0.53197037,115010.0,115000.0,0.06542791]
[1761528081982,0.17289792,115010.0,115000.0,0.06642791]
[1761528082420,0.53197037,115010.0,115000.0,0.06242791]
[1761528082560,0.53697037,115010.0,115000.0,0.06242791]
[1761528083355,0.17391304,115000.0,114990.0,0.3893553]
[1761528083593,0.53298549,115000.0,114990.0,0.47917431]
[1761528084249,0.17391304,115000.0,114990.0,0.47917431]
[1761528084732,0.53298549,115000.0,114990.0,0.30524692]
[1761528085293,0.53298549,115000.0,114990.0,0.47917508]
[1761528085695,0.17491304,115000.0,114990.0,0.47917508]
[1761528086132,0.53398549,115000.0,114990.0,0.47917508]
[1761528086676,0.53398549,115000.0,114990.0,0.30524692]
[1761528087243,0.001,115000.0,114990.0,0.47917508]
[1761528090395,0.001,115000.0,114990.0,0.46354286]
[1761528092950,0.001,115000.0,114990.0,0.82261531]
[1761528093505,0.001,115000.0,114990.0,0.46354286]
[1761528093697,0.001,115000.0,114990.0,0.82261531]
[1761528096751,0.001,115000.0,114990.0,0.46354286]
[1761528097848,0.17491304,115000.0,114990.0,0.46354286]
[1761528098858,0.001,115000.0,114990.0,0.46354286]
[1761528099167,0.36007245,115000.0,114990.0,0.46354286]
[1761528099522,0.001,115000.0,114990.0,0.46354286]
[1761528109431,0.001,115000.0,114990.0,0.41674717]
[1761528109700,0.001,115000.0,114990.0,0.46359841]
[1761528110549,0.001,115000.0,114990.0,0.41674717]
[1761528111321,0.001,115000.0,114990.0,0.46360184]
[1761528111522,0.001,115000.0,114990.0,0.41674717]
[1761528112306,0.001,115000.0,114990.0,1.53731998]
[1761528112699,0.001,115000.0,114990.0,1.17824753]
[1761528113106,0.001,115000.0,114990.0,1.17820753]
[1761528113319,0.001,115000.0,114990.0,0.81913508]
[1761528113522,0.001,115000.0,114990.0,0.75670717]
[1761528114750,0.001,115000.0,114990.0,0.46356634]
[1761528115972,0.001,115000.0,114990.0,0.41670717]
[1761528118608,0.53398549,115000.0,114990.0,0.08981901]
[1761528118806,0.36007245,115000.0,114990.0,0.46359957]
[1761528118985,0.001,115000.0,114990.0,0.46359957]
[1761528119185,0.36007245,115000.0,114990.0,0.46359957]
[1761528119660,0.53398549,115000.0,114990.0,0.46359957]
[1761528120092,0.53398549,115000.0,114990.0,0.28967141]
[1761528120307,0.53398549,115000.0,114990.0,0.46359957]
[1761528124091,0.36007245,115000.0,114990.0,0.46359957]
[1761528124277,0.001,115000.0,114990.0,0.46359957]
[1761528124482,0.17491304,115000.0,114990.0,0.41670717]
[1761528125174,0.53398549,115000.0,114990.0,0.41670717]
[1761528126743,0.53398549,115000.0,114990.0,0.24277901]
[1761528126898,0.53398549,115000.0,114990.0,0.28966904]
[1761528127134,0.53398549,115000.0,114990.0,0.4635972]
[1761528127282,0.53398549,115000.0,114990.0,0.28966904]
[1761528127481,0.53398549,115000.0,114990.0,0.4635972]
[1761528127845,0.17491304,115000.0,114990.0,0.4635972]
[1761528128523,0.001,115000.0,114990.0,0.4635972]
[1761528129096,0.001,115000.0,114990.0,0.41670717]
[1761528132009,0.001,115000.0,114990.0,0.47913508]
[1761528133524,0.001,115000.0,114990.0,1.13852227]
[1761528133762,0.001,115000.0,114990.0,1.16460964]
[1761528134462,0.001,115000.0,114990.0,1.10218173]
[1761528135303,0.001,115000.0,114990.0,1.16464476]
[1761528135549,0.001,115000.0,114990.0,1.10218173]
[1761528136327,0.001,115000.0,114990.0,0.84524868]
[1761528136548,0.001,115000.0,114990.0,1.16463587]
[1761528136759,0.001,115000.0,114990.0,1.13836401]
[1761528137563,0.001,115000.0,114990.0,1.2007976]
[1761528137924,0.001,115000.0,114990.0,1.13836401]
[1761528138342,0.001,115000.0,114990.0,1.78482001]
[1761528138544,0.001,115000.0,114990.0,1.34491901]
[1761528138892,0.001,115000.0,114990.0,1.42408114]
[1761528139457,0.000207,115020.0,115010.0,0.17389792]
[1761528139663,0.000207,115020.0,115010.0,0.85585259]
[1761528139904,0.000207,115020.0,115010.0,0.8384628]
[1761528140098,0.000207,115020.0,115010.0,0.84724833]
[1761528140863,0.003207,115020.0,115010.0,0.84724833]
[1761528142376,0.003207,115020.0,115010.0,0.52786114]
[1761528146228,0.003207,115020.0,115010.0,0.84724833]
[1761528147647,0.003207,115020.0,115010.0,0.88343061]
[1761528148049,0.003207,115020.0,115010.0,0.83663193]
[1761528148858,0.000207,115020.0,115010.0,0.83663193]
[1761528149689,0.000207,115020.0,115010.0,0.51724474]
[1761528149919,0.000207,115020.0,115010.0,0.83663193]
[1761528151069,0.000207,115020.0,115010.0,1.01754899]
[1761528151242,0.000207,115020.0,115010.0,1.33693618]
[1761528151457,0.18743009,115060.0,115050.0,0.2]
[1761528151458,0.0048612,115060.0,115050.0,0.2]
[1761528151665,0.00519916,115070.0,115060.0,1.03430263]
[1761528151886,0.00519916,115070.0,115060.0,1.15921083]
[1761528151887,0.00534525,115070.0,115060.0,1.15921083]
[1761528152283,0.00534525,115070.0,115060.0,1.16824777]
[1761528152509,0.00534525,115070.0,115060.0,1.3454138]
[1761528152990,0.00534525,115070.0,115060.0,1.45076159]
[1761528153243,0.00534525,115070.0,115060.0,1.44954513]
[1761528153456,0.00534525,115070.0,115060.0,1.03502661]
[1761528153653,0.00534525,115070.0,115060.0,1.3544138]
[1761528154072,0.00534525,115070.0,115060.0,1.38551517]
[1761528154276,0.00534525,115070.0,115060.0,1.03502661]
[1761528154496,0.00534525,115070.0,115060.0,1.3544138]
[1761528154696,0.00534525,115070.0,115060.0,1.3553738]
[1761528154896,0.00534525,115070.0,115060.0,1.2015738]
[1761528155195,0.00534525,115070.0,115060.0,1.4109738]
[1761528155397,0.00534525,115070.0,115060.0,1.47768851]
[1761528157383,0.00534525,115070.0,115060.0,1.4938555]
[1761528157747,0.00534525,115070.0,115060.0,1.9786925]
[1761528159159,0.00534525,115070.0,115060.0,1.65930531]
[1761528159385,0.00534525,115070.0,115060.0,1.6768645]
[1761528159654,0.00534525,115070.0,115060.0,1.6627385]
[1761528159857,0.00534525,115070.0,115060.0,1.6355955]
[1761528161410,0.00534525,115070.0,115060.0,1.31620831]
[1761528161615,0.00534525,115070.0,115060.0,1.4938555]
[1761528161820,0.00534525,115070.0,115060.0,1.6984255]
[1761528162013,0.00534525,115070.0,115060.0,1.6426655]
[1761528162233,0.00637976,115070.0,115060.0,1.6882255]
[1761528162433,0.00637976,115070.0,115060.0,1.4790255]
[1761528162628,0.00637976,115070.0,115060.0,1.4880255]
[1761528162849,0.00637976,115070.0,115060.0,1.6882255]
[1761528163142,0.00637976,115070.0,115060.0,1.4820255]
[1761528163361,0.00637976,115070.0,115060.0,1.6912255]
[1761528163552,0.00637976,115070.0,115060.0,1.6911855]
[1761528163728,0.00637976,115070.0,115060.0,1.4448615]
[1761528163962,0.00637976,115070.0,115060.0,1.4876155]
[1761528164156,0.00637976,115070.0,115060.0,1.6568455]
[1761528164548,0.00637976,115070.0,115060.0,1.6578455]
[1761528164752,0.00637976,115070.0,115060.0,1.4846155]
[1761528165135,0.00637976,115070.0,115060.0,1.4886155]
[1761528165539,0.00637976,115070.0,115060.0,1.6588455]
[1761528166109,0.00637976,115070.0,115060.0,1.6002655]
[1761528167598,0.00637976,115070.0,115060.0,1.63136687]
[1761528167839,0.00903694,115080.0,115070.0,0.54998952]
[1761528168037,0.00952381,115080.0,115070.0,1.25288857]
[1761528168608,0.00952381,115080.0,115070.0,0.93350138]
[1761528168807,0.00952381,115080.0,115070.0,1.25288857]
[1761528169604,0.00952381,115080.0,115070.0,1.57227576]
[1761528169846,0.00952381,115080.0,115070.0,2.47442276]
[1761528170019,0.00952381,115080.0,115070.0,2.47542276]
[1761528170372,0.00952381,115080.0,115070.0,1.83664838]
[1761528170796,0.00952381,115080.0,115070.0,2.47442276]
[1761528170964,0.00952381,115080.0,115070.0,2.47542276]
[1761528171293,0.00952381,115080.0,115070.0,2.47842276]
[1761528172484,0.00952381,115080.0,115070.0,2.47836957]
[1761528173376,0.00973065,115080.0,115070.0,2.47836957]
[1761528175057,0.00973065,115080.0,115070.0,2.504435]
[1761528175361,0.00973065,115080.0,115070.0,1.867814]
[1761528175687,0.00973065,115080.0,115070.0,1.846314]
[1761528176416,0.00973065,115080.0,115070.0,1.30823162]
[1761528176537,0.00973065,115080.0,115070.0,1.62761881]
[1761528177317,0.00973065,115080.0,115070.0,1.947006]
[1761528178733,1e-08,115110.0,115080.0,0.17379214]
[1761528178945,1e-08,115120.0,115110.0,0.92374684]
[1761528179161,4.868e-05,115120.0,115110.0,2.71406698]
[1761528179306,0.02842631,115140.0,115130.0,1.22041694]
[1761528179514,0.02842631,115140.0,115130.0,2.01599335]
[1761528179515,0.02847495,115140.0,115130.0,2.01599335]
[1761528179750,0.02847495,115140.0,115130.0,1.00912366]
[1761528179920,0.02847495,115140.0,115130.0,1.23004492]
[1761528180122,0.02847495,115140.0,115130.0,1.34943211]
[1761528180355,0.0243936,115160.0,115150.0,0.74986877]
[1761528180576,0.02444224,115160.0,115150.0,1.3530118]
[1761528181157,0.02444224,115160.0,115150.0,1.01751081]
[1761528181359,0.02444224,115160.0,115150.0,0.98132853]
[1761528181602,0.02444224,115160.0,115150.0,1.27753269]
[1761528181893,0.02444224,115160.0,115150.0,0.9581455]
[1761528182098,0.02444224,115160.0,115150.0,1.27753269]
[1761528182312,0.02444224,115160.0,115150.0,1.27853269]
[1761528182486,0.02444224,115160.0,115150.0,0.9601455]
[1761528182708,0.02444224,115160.0,115150.0,1.27853269]
[1761528182885,0.02444224,115160.0,115150.0,0.9591455]
[1761528183078,0.02444224,115160.0,115150.0,1.27853269]
[1761528183391,0.02444224,115160.0,115150.0,1.07853269]
[1761528183590,0.02444224,115160.0,115150.0,1.07753269]
[1761528183809,0.02444224,115160.0,115150.0,1.31371497]
[1761528184020,0.02844224,115160.0,115150.0,1.31371497]
[1761528184226,0.1363218,115180.0,115160.0,0.74985369]
[1761528184419,0.1363218,115180.0,115160.0,1.60971329]
[1761528184596,0.1363218,115180.0,115160.0,1.21461989]
[1761528185027,0.1363218,115180.0,115160.0,1.24066443]
[1761528185746,0.042991,115170.0,115160.0,1.56005162]
[1761528186171,0.042991,115170.0,115160.0,1.56105162]
[1761528186372,0.042991,115170.0,115160.0,1.24166443]
[1761528186918,0.042991,115170.0,115160.0,1.53500708]
[1761528187557,0.042991,115170.0,115160.0,1.21561989]
[1761528187759,0.042991,115170.0,115160.0,1.01561989]
[1761528188297,0.042991,115170.0,115160.0,0.97943761]
[1761528189503,0.037991,115170.0,115160.0,0.97943761]
[1761528189701,0.03985102,115170.0,115160.0,0.97943761]
[1761528189909,0.03985102,115170.0,115160.0,1.06697247]
[1761528190334,0.03985102,115170.0,115160.0,0.66005042]
[1761528190539,0.03985102,115170.0,115160.0,0.32005042]
[1761528190995,0.21350735,115170.0,115160.0,0.32005042]
[1761528191172,0.03985102,115170.0,115160.0,0.32005042]
[1761528191578,0.03985102,115170.0,115160.0,0.31905042]
[1761528191841,0.21250735,115170.0,115160.0,0.26349042]
[1761528192041,0.21250735,115170.0,115160.0,0.08981901]
[1761528192268,0.21850735,115170.0,115160.0,0.08981901]
[1761528192685,0.17368049,115160.0,115140.0,0.23790665]
[1761528192895,0.22533014,115170.0,115150.0,0.2635055]
[1761528193775,0.21664894,115170.0,115150.0,0.28668853]
[1761528194076,0.21064894,115170.0,115150.0,0.31759924]
[1761528194404,0.21064894,115170.0,115160.0,0.02318303]
[1761528194405,0.21264894,115170.0,115160.0,0.02318303]
[1761528194604,0.21264894,115170.0,115160.0,0.11300204]
[1761528194931,0.21264894,115170.0,115160.0,0.28667345]
[1761528195131,0.21264894,115170.0,115160.0,0.11300204]
[1761528195339,0.038991,115170.0,115160.0,0.45896059]
[1761528195580,0.036991,115170.0,115160.0,0.44159345]
[1761528195976,0.041991,115170.0,115160.0,0.44159345]
[1761528196566,0.041991,115170.0,115160.0,0.47250416]
[1761528197417,0.041991,115170.0,115160.0,0.80477649]
[1761528198187,0.036991,115170.0,115160.0,1.21169854]
[1761528198390,0.036991,115170.0,115160.0,1.16533247]
[1761528198764,0.03885102,115170.0,115160.0,0.75941042]
[1761528198967,0.03885102,115170.0,115160.0,0.80580623]
[1761528199170,0.03885102,115170.0,115160.0,0.80584623]
[1761528200775,0.03885102,115170.0,115160.0,0.80484623]
[1761528201109,0.03885102,115170.0,115160.0,0.83878466]
[1761528201287,0.03885102,115170.0,115160.0,0.83578466]
[1761528201440,0.21250735,115170.0,115160.0,0.49578466]
[1761528201641,0.21550735,115170.0,115160.0,0.49578466]
[1761528201837,0.21250735,115170.0,115160.0,0.32211325]
[1761528202087,0.21250735,115170.0,115160.0,0.27571744]
[1761528202288,0.21550735,115170.0,115160.0,0.12075744]
[1761528202509,0.21250735,115170.0,115160.0,0.27575744]
[1761528203877,0.6224294,115170.0,115160.0,0.03093843]
[1761528204216,0.6194294,115170.0,115160.0,0.0541631]
[1761528204416,0.6224294,115170.0,115160.0,0.0541631]
[1761528204754,0.6194294,115170.0,115160.0,0.0541631]
[1761528204952,0.6224294,115170.0,115160.0,0.02322467]
[1761528205312,0.21250735,115170.0,115160.0,0.0541631]
[1761528205465,0.6194294,115170.0,115160.0,0.02322467]
[1761528205672,0.6224294,115170.0,115160.0,0.02322467]
[1761528205869,0.21550735,115170.0,115160.0,0.02322467]
[1761528206215,0.6224294,115170.0,115160.0,0.02322467]
[1761528206419,0.6224294,115170.0,115160.0,0.0541631]
[1761528207205,0.21550735,115170.0,115160.0,0.0541631]
[1761528207383,0.6194294,115170.0,115160.0,0.03093843]
[1761528207730,0.21550735,115170.0,115160.0,0.03093843]
[1761528208153,0.21250735,115170.0,115160.0,0.03093843]
[1761528208326,0.21550735,115170.0,115160.0,0.07733424]
[1761528208697,0.21250735,115170.0,115160.0,0.07733424]
[1761528210033,0.22450735,115170.0,115160.0,0.07733424]
[1761528210881,0.37934735,115170.0,115160.0,0.07733424]
[1761528211175,0.37934735,115170.0,115160.0,0.04639581]
[1761528211370,0.37934735,115170.0,115160.0,0.07748749]
[1761528211778,0.37934735,115170.0,115160.0,0.04639581]
[1761528213698,0.05085102,115170.0,115160.0,0.30988623]
[1761528213891,0.05085102,115170.0,115160.0,0.46468623]
[1761528215399,0.05085102,115170.0,115160.0,0.41829042]
[1761528216022,0.03885102,115170.0,115160.0,0.48015402]
[1761528216221,0.03885102,115170.0,115160.0,0.41829042]
[1761528216543,0.04485102,115170.0,115160.0,0.41829042]
[1761528216750,0.04485102,115170.0,115160.0,0.46491836]
[1761528216926,0.21850735,115170.0,115160.0,0.29124695]
[1761528217109,0.21850735,115170.0,115160.0,0.46491836]
[1761528217316,0.21850735,115170.0,115160.0,0.31011836]
[1761528217520,0.21850735,115170.0,115160.0,0.13644695]
[1761528217753,0.6254294,115170.0,115160.0,0.29116695]
[1761528217947,0.21850735,115170.0,115160.0,0.29116695]
[1761528219527,0.7801094,115170.0,115160.0,0.04662794]
[1761528219730,0.37318735,115170.0,115160.0,0.07771425]
[1761528219929,0.37318735,115170.0,115160.0,0.07771389]
[1761528220179,0.37318735,115170.0,115160.0,0.04662794]
[1761528221436,0.37318735,115170.0,115160.0,0.07771498]
[1761528221611,0.37318735,115170.0,115160.0,0.04662794]
[1761528222106,0.37318735,115170.0,115160.0,0.07771661]
[1761528222566,0.37318735,115170.0,115160.0,0.07772199]
[1761528223347,0.37318735,115170.0,115160.0,0.04662794]
[1761528224591,0.37318735,115170.0,115160.0,0.0777364]
[1761528225102,0.7801094,115170.0,115160.0,0.0777364]
[1761528225777,1.08985773,115170.0,115160.0,0.0777364]
[1761528226434,1.08985773,115170.0,115160.0,0.03110846]
[1761528227843,0.42870735,115170.0,115160.0,0.03110846]
[1761528228617,0.83594808,115170.0,115160.0,0.03110846]
[1761528228817,1.17594808,115170.0,115160.0,0.05445001]
[1761528229032,1.17594808,115170.0,115160.0,0.02334155]
[1761528229342,0.17367141,115160.0,115150.0,0.05445001]
[1761528229568,0.58091214,115160.0,115150.0,0.05445001]
[1761528229767,0.17367141,115160.0,115150.0,0.12092747]
[1761528229977,0.38375141,115160.0,115150.0,0.13644695]
[1761528230582,0.38975141,115160.0,115150.0,0.13644695]
[1761528231159,0.06152,115160.0,115150.0,0.31013344]
[1761528231360,0.2162,115160.0,115150.0,0.31013344]
[1761528231590,0.006,115160.0,115150.0,0.31013344]
[1761528231798,0.21616,115160.0,115150.0,0.2635055]
[1761528231995,0.38983141,115160.0,115150.0,0.31019558]
[1761528232194,0.21616,115160.0,115150.0,0.2635055]
[1761528232415,0.006,115160.0,115150.0,1.07260983]
[1761528232653,0.006,115160.0,115150.0,0.6653691]
[1761528233438,0.036991,115170.0,115160.0,0.51367141]
[1761528233734,0.036991,115170.0,115160.0,0.60349042]
[1761528233886,0.191711,115170.0,115160.0,0.60349042]
[1761528234090,0.191671,115170.0,115160.0,0.60349042]
[1761528234682,0.036991,115170.0,115160.0,0.60349042]
[1761528234906,0.191711,115170.0,115160.0,0.60349042]
[1761528235743,0.191711,115170.0,115160.0,0.6032961]
[1761528236766,0.036991,115170.0,115160.0,0.6032961]
[1761528236967,0.191711,115170.0,115160.0,0.6032961]
[1761528238123,0.036991,115170.0,115160.0,0.6032961]
[1761528238374,0.191631,115170.0,115160.0,0.6032961]
[1761528238971,0.191591,115170.0,115160.0,0.6032961]
[1761528240169,0.19345102,115170.0,115160.0,0.6032961]
[1761528240578,0.49345102,115170.0,115160.0,0.6032961]
[1761528241025,0.33885102,115170.0,115160.0,1.01053683]
[1761528241202,0.33885102,115170.0,115160.0,1.07240043]
[1761528241399,0.33885102,115170.0,115160.0,1.22696043]
[1761528242038,0.33885102,115170.0,115160.0,0.8197197]
[1761528242214,0.33885102,115170.0,115160.0,1.22696043]
[1761528242844,0.33885102,115170.0,115160.0,1.22996043]
[1761528245348,0.33885102,115170.0,115160.0,0.8227197]
[1761528245556,0.33885102,115170.0,115160.0,1.22996043]
[1761528249830,0.33885102,115170.0,115160.0,1.18075588]
[1761528250932,0.33885102,115170.0,115160.0,0.8227197]
[1761528251127,0.33885102,115170.0,115160.0,1.18075588]
[1761528251595,0.33885102,115170.0,115160.0,1.11889228]
[1761528251800,0.33885102,115170.0,115160.0,1.07918481]
[1761528252428,0.51250735,115170.0,115160.0,0.1394007]
[1761528252635,0.51250735,115170.0,115160.0,0.1238785]
[1761528252636,0.98535606,115170.0,115160.0,0.1238785]
[1761528252848,0.98535606,115170.0,115160.0,0.0573579]
[1761528253005,0.66702735,115170.0,115160.0,0.02629841]
[1761528253211,0.98535606,115170.0,115160.0,0.02329841]
[1761528253590,0.68535606,115170.0,115160.0,0.02329841]
[1761528253787,0.36702735,115170.0,115160.0,0.02329841]
[1761528254912,0.37002735,115170.0,115160.0,0.02329841]
[1761528260079,0.21550735,115170.0,115160.0,0.14417691]
[1761528260331,0.21550735,115170.0,115160.0,0.14418529]
[1761528261984,0.21550735,115170.0,115160.0,0.02330679]
[1761528266691,0.8396647,115170.0,115160.0,0.02330679]
[1761528267218,0.79237981,115170.0,115160.0,0.02330679]
[1761528267526,0.17367141,115160.0,115150.0,0.05436628]
[1761528267682,0.32811141,115160.0,115150.0,0.05436628]
[1761528267905,0.3297649,115160.0,115150.0,0.05436628]
[1761528269190,0.88729964,115160.0,115150.0,0.02330679]
[1761528269327,0.17368649,115150.0,115140.0,0.05441492]
[1761528269524,0.69648588,115150.0,115140.0,0.05441492]
[1761528269727,0.17513342,115150.0,115140.0,0.02335543]
[1761528271106,1.18120114,115150.0,115140.0,0.02335543]
[1761528271259,1.18120114,115150.0,115140.0,4.864e-05]
[1761528271459,1.27102015,115150.0,115140.0,4.864e-05]
[1761528271643,1.27402015,115150.0,115140.0,4.864e-05]
[1761528272054,1.27102015,115150.0,115140.0,4.864e-05]
[1761528272479,0.20989894,115130.0,115120.0,0.07764118]
[1761528272661,0.96328129,115130.0,115120.0,0.03110813]
[1761528273857,0.20991403,115120.0,115110.0,0.04658169]
[1761528274075,0.52868901,115120.0,115110.0,0.03104678]
[1761528275118,0.52868901,115120.0,115110.0,0.03404678]
[1761528275265,0.20991403,115120.0,115110.0,0.03104678]
[1761528275474,0.61850802,115120.0,115110.0,0.03104678]
[1761528276672,0.32825175,115120.0,115110.0,0.03104678]
[1761528276879,0.52868901,115120.0,115110.0,0.03104678]
[1761528277003,0.73872901,115120.0,115110.0,0.03104678]
[1761528278434,0.82854802,115120.0,115110.0,0.03104678]
[1761528279300,0.17377704,115090.0,115080.0,0.05527129]
[1761528279502,0.32825704,115090.0,115080.0,0.14513897]
[1761528279731,0.32825704,115090.0,115080.0,0.14967272]
[1761528280308,0.32825704,115090.0,115080.0,0.32346486]
[1761528280923,0.15448,115090.0,115080.0,0.28888317]
[1761528281329,0.32825704,115090.0,115080.0,0.28888317]
[1761528281927,0.15448,115090.0,115080.0,0.28888317]
[1761528282151,0.32820194,115100.0,115090.0,0.17377704]
[1761528282463,0.32820194,115100.0,115090.0,0.58237103]
[1761528282628,0.18245904,115110.0,115090.0,0.26359605]
[1761528282846,0.33689904,115110.0,115090.0,0.26359605]
[1761528283012,0.33689904,115110.0,115090.0,0.58237103]
[1761528283213,0.17376194,115100.0,115090.0,0.08981901]
[1761528284254,0.17376194,115100.0,115090.0,0.09581901]
[1761528284488,0.17376194,115100.0,115090.0,0.08981901]
[1761528284619,0.17417553,115100.0,115090.0,0.09581901]
[1761528285967,0.17417553,115100.0,115090.0,0.26959605]
[1761528287277,0.00041359,115100.0,115090.0,0.58837103]
[1761528287804,0.00041359,115100.0,115090.0,0.92837103]
[1761528289852,0.00041359,115100.0,115090.0,1.13111867]
[1761528290813,0.00041359,115100.0,115090.0,1.16730095]
[1761528290965,0.00041359,115100.0,115090.0,1.21388264]
[1761528293810,0.00041359,115100.0,115090.0,0.69236002]
[1761528294036,0.00041359,115100.0,115090.0,1.20788264]
[1761528294229,0.00041359,115100.0,115090.0,1.20888264]
[1761528294409,0.00041359,115100.0,115090.0,1.22188264]
[1761528295181,0.00041359,115100.0,115090.0,1.43212264]
[1761528297979,0.00041359,115100.0,115090.0,1.18570036]
[1761528298293,0.00041359,115100.0,115090.0,1.34935867]
[1761528298440,0.00041359,115100.0,115090.0,1.39593586]
[1761528298647,0.00041359,115100.0,115090.0,1.34935867]
[1761528300525,0.00041359,115100.0,115090.0,1.41122227]
[1761528301859,0.00041359,115100.0,115090.0,1.44740455]
[1761528303809,0.00041359,115100.0,115090.0,1.47346618]
[1761528305998,0.00041359,115100.0,115090.0,1.74075618]
[1761528306212,0.00041359,115100.0,115090.0,1.67889258]
[1761528306431,1e-08,115100.0,115090.0,1.75641844]
[1761528306817,0.17368711,115150.0,115140.0,0.17370158]
[1761528307082,0.17368649,115150.0,115140.0,0.44903243]
[1761528307458,0.1824421,115160.0,115140.0,0.44903243]
[1761528308042,0.006,115150.0,115140.0,0.44903243]
[1761528308224,0.18256879,115160.0,115140.0,0.44903243]
[1761528308822,0.18256879,115160.0,115150.0,0.2635055]
[1761528309474,0.00012669,115160.0,115150.0,0.2635055]
[1761528309631,0.00612669,115160.0,115150.0,0.2635055]
[1761528309826,0.00012669,115160.0,115150.0,0.6035055]
[1761528310717,0.00012669,115160.0,115150.0,0.6535055]
[1761528311278,0.00012669,115160.0,115150.0,0.6565055]
[1761528311685,0.00012669,115160.0,115150.0,0.9749025]
[1761528313760,0.00012669,115160.0,115150.0,1.014676]
[1761528314188,0.0013667,115160.0,115150.0,1.014676]
[1761528314577,0.0013667,115160.0,115150.0,1.08189012]
[1761528314924,0.0013667,115160.0,115150.0,1.04570784]
[1761528315130,0.0013667,115160.0,115150.0,1.25574784]
[1761528315596,0.0013667,115160.0,115150.0,1.224716]
[1761528316139,0.0013667,115160.0,115150.0,1.169156]
[1761528316344,0.0013667,115160.0,115150.0,1.224676]
[1761528316707,0.0013667,115160.0,115150.0,0.8665055]
[1761528317093,0.0013667,115160.0,115150.0,1.224676]
[1761528318596,0.0013667,115160.0,115150.0,0.8665055]
[1761528318822,0.0013667,115160.0,115150.0,1.224676]
[1761528319115,0.0013667,115160.0,115150.0,1.25073002]
[1761528319881,0.53320861,115160.0,115150.0,0.16887303]
[1761528320149,0.53320861,115160.0,115150.0,0.09281901]
[1761528320276,0.53320861,115160.0,115150.0,0.24725901]
[1761528320481,0.53320861,115160.0,115150.0,0.003]
[1761528321389,0.17503811,115160.0,115150.0,0.17668649]
[1761528321627,0.17503811,115160.0,115150.0,0.003]
[1761528322059,0.17503811,115160.0,115140.0,0.32814158]
[1761528322208,0.1737981,115160.0,115140.0,0.41796059]
[1761528322413,0.1737981,115160.0,115150.0,0.17368649]
[1761528324989,0.00012669,115160.0,115150.0,0.28087414]
[1761528325204,0.00012669,115160.0,115150.0,0.621676]
[1761528325376,0.0013667,115160.0,115150.0,0.621676]
[1761528325997,0.3013667,115160.0,115150.0,0.621676]
[1761528326577,0.3013667,115160.0,115150.0,0.624676]
[1761528331983,0.20931864,115160.0,115150.0,0.624676]